fUST/lending_fUST_20240707
["ID","MTS","AMOUNT","RATE_DAILY","PERIOD"]
[331395921,1720343440552,-516.102948,0.00025488,7]
[331395922,1720343440562,-151.0,0.00025488,7]
[331395923,1720343440571,-151.0,0.00025488,7]
[331395924,1720343440581,-172649.807249,0.00025488,3]
[331395925,1720343440591,-1000.0,0.0002549,2]
[331395926,1720343440600,-151.345165,0.00025491,7]
[331395927,1720343440610,-151.0,0.00025491,7]
[331395928,1720343440619,-151.0,0.00025491,7]
[331395929,1720343440629,-151.0,0.00025491,7]
[331395930,1720343440641,-151.421555,0.00025497,7]
[331395931,1720343440650,-275.898997,0.00025497,7]
[331395932,1720343440660,-275.898997,0.00025497,7]
[331395933,1720343440670,-151.0,0.00025497,7]
[331395934,1720343440680,-151.0,0.00025497,7]
[331395935,1720343440690,-185828.18979682,0.00025498,2]
[331395937,1720343440699,-4174.40467449,0.00025498,2]
[331395939,1720343440709,-189.12210345,0.00025498,2]
[331395941,1720343440719,-763.48993106,0.00025498,2]
[331395943,1720343440729,-151.50933,0.00025498,7]
[331395944,1720343440739,-151.0,0.00025498,7]
[331395946,1720343440749,-151.0,0.00025498,7]
[331395948,1720343440760,-151.805337,0.00025498,7]
[331395950,1720343440769,-151.632729,0.00025498,7]
[331395952,1720343440779,-163.007398,0.00025498,7]
[331395954,1720343440789,-275.898997,0.00025498,7]
[331395956,1720343440798,-275.898997,0.00025498,7]
[331395958,1720343440809,-151.0,0.00025498,7]
[331395960,1720343440818,-151.0,0.00025498,7]
[331395962,1720343440828,-151.0,0.00025498,7]
[331395964,1720343440840,-310.0,0.00025498,30]
[331395965,1720343440850,-310.0,0.00025498,30]
[331395966,1720343440859,-310.0,0.00025498,30]
[331395967,1720343440869,-452.655239,0.00025498,30]
[331395968,1720343440879,-170.714717,0.00025498,7]
[331395969,1720343440888,-151.0,0.00025498,7]
[331395970,1720343440898,-151.0,0.00025498,7]
[331395971,1720343440908,-151.0,0.00025498,7]
[331395972,1720343440918,-151.0,0.00025498,7]
[331395973,1720343440928,-238.793085,0.00025498,7]
[331395974,1720343440937,-238.793085,0.00025498,7]
[331395975,1720343440950,-257.146742,0.00025498,7]
[331395976,1720343440960,-561.996436,0.00025498,7]
[331395977,1720343440969,-257.146742,0.00025498,7]
[331395978,1720343440979,-561.996436,0.00025498,7]
[331395979,1720343440989,-151.0,0.00025498,7]
[331395980,1720343440999,-555.175479,0.00025498,7]
[331395981,1720343441009,-555.175479,0.00025498,7]
[331395982,1720343441019,-622.763566,0.00025498,7]
[331395983,1720343441029,-622.763566,0.00025498,7]
[331395984,1720343441039,-151.0,0.00025498,7]
[331395985,1720343441048,-151.0,0.00025498,7]
[331395986,1720343441058,-196.469183,0.00025498,7]
[331395987,1720343441068,-196.469183,0.00025498,7]
[331395988,1720343441079,-516.102948,0.00025498,7]
[331395989,1720343441088,-516.102948,0.00025498,7]
[331395990,1720343441097,-168.08001,0.00025498,7]
[331395991,1720343441107,-151.0,0.00025501,7]
[331395992,1720343441117,-151.0,0.00025501,7]
[331395993,1720343441127,-275.898997,0.00025501,7]
[331395994,1720343441136,-275.898997,0.00025501,7]
[331395995,1720343441147,-151.0,0.00025501,7]
[331395996,1720343441157,-151.0,0.00025501,7]
[331395997,1720343441167,-151.0,0.00025501,7]
[331395998,1720343441177,-151.0,0.00025501,7]
[331395999,1720343441186,-151.0,0.00025501,7]
[331396000,1720343441199,-151.0,0.00025501,7]
[331396001,1720343441209,-238.793085,0.00025501,7]
[331396002,1720343441219,-238.793085,0.00025501,7]
[331396003,1720343441228,-257.146742,0.00025501,7]
[331396004,1720343441238,-561.996436,0.00025501,7]
[331396005,1720343441247,-257.146742,0.00025501,7]
[331396006,1720343441257,-561.996436,0.00025501,7]
[331396007,1720343441268,-151.0,0.00025501,7]
[331396008,1720343441277,-555.175479,0.00025501,7]
[331396009,1720343441287,-555.175479,0.00025501,7]
[331396010,1720343441296,-622.763566,0.00025501,7]
[331396011,1720343441305,-622.763566,0.00025501,7]
[331396012,1720343441315,-151.0,0.00025501,7]
[331396013,1720343441324,-151.0,0.00025501,7]
[331396014,1720343441335,-196.469183,0.00025501,7]
[331396015,1720343441346,-196.469183,0.00025501,7]
[331396016,1720343441358,-516.102948,0.00025501,7]
[331396017,1720343441370,-516.102948,0.00025501,7]
[331396018,1720343441379,-52119.39254387,0.00025501,2]
[331396019,1720343441389,-4618.9222882,0.00025501,2]
[331396020,1720343442089,-666.46704462,0.00025488,2]
[331396021,1720343442101,-19894.9247275,0.00025488,2]
[331396023,1720343442112,-14278.44298459,0.00025501,2]
[331396062,1720343447281,-797.75349532,0.00025501,2]
[331396063,1720343447733,-10304.88123189,0.00025501,2]
[331396064,1720343447742,-150.41372044,0.00025501,2]
[331396065,1720343447752,-150.0,0.00025506,2]
[331396066,1720343447762,-351.0,0.00025626,2]
[331396067,1720343447772,-1405.0,0.00025626,2]
[331396068,1720343447781,-293.3880832,0.00025753,2]
[331396069,1720343447791,-153.0,0.00025753,2]
[331396070,1720343447801,-151.0,0.0002599,7]
[331396071,1720343447810,-151.0,0.0002599,7]
[331396072,1720343447819,-275.898997,0.0002599,7]
[331396073,1720343447829,-275.898997,0.0002599,7]
[331396074,1720343447841,-151.0,0.0002599,7]
[331396075,1720343447851,-295.066829,0.0002599,7]
[331396076,1720343447860,-187455.11841967,0.00026,2]
[331396077,1720343447870,-1000.0,0.00026,26]
[331396078,1720343447879,-1252.49934615,0.00026,2]
[331396079,1720343447889,-752.16136077,0.00026,2]
[331396080,1720343447898,-152.906873,0.00026,7]
[331396081,1720343447908,-151.0,0.00026,7]
[331396082,1720343447917,-275.898997,0.00026,7]
[331396083,1720343447927,-275.898997,0.00026,7]
[331396084,1720343447936,-151.0,0.00026,7]
[331396085,1720343447946,-196.824,0.00026,7]
[331396086,1720343447956,-153.588416,0.00026,7]
[331396087,1720343447966,-3000.0,0.00026,2]
[331396088,1720343447975,-151.0,0.00026,7]
[331396089,1720343447984,-151.0,0.00026,7]
[331396090,1720343447993,-238.793085,0.00026,7]
[331396091,1720343448003,-238.793085,0.00026,7]
[331396092,1720343448012,-257.146742,0.00026,7]
[331396093,1720343448022,-257.146742,0.00026,7]
[331396094,1720343448031,-561.996436,0.00026,7]
[331396095,1720343448040,-151.0,0.00026,7]
[331396096,1720343448050,-555.175479,0.00026,7]
[331396097,1720343448059,-555.175479,0.00026,7]
[331396098,1720343448069,-622.763566,0.00026,7]
[331396099,1720343448080,-622.763566,0.00026,7]
[331396100,1720343448090,-151.0,0.00026,7]
[331396101,1720343448101,-151.0,0.00026,7]
[331396102,1720343448111,-196.469183,0.00026,7]
[331396103,1720343448121,-196.469183,0.00026,7]
[331396104,1720343448130,-516.102948,0.00026,7]
[331396105,1720343448140,-516.102948,0.00026,7]
[331396106,1720343448149,-3000.0,0.0002601,2]
[331396107,1720343448159,-3000.0,0.0002602,2]
[331396108,1720343448168,-3000.0,0.0002603,2]
[331396109,1720343448178,-3000.0,0.0002604,2]
[331396110,1720343448187,-3000.0,0.0002605,2]
[331396111,1720343448197,-250.0,0.00026054,2]
[331396112,1720343448207,-3000.0,0.0002606,2]
[331396113,1720343448217,-3000.0,0.0002607,2]
[331396114,1720343448226,-3000.0,0.0002608,2]
[331396115,1720343448236,-3000.0,0.0002609,2]
[331396116,1720343448245,-3141.6718524,0.00026098,2]
[331396117,1720343448255,-3000.0,0.000261,2]
[331396118,1720343448265,-3000.0,0.0002611,2]
[331396119,1720343448275,-3000.0,0.0002612,2]
[331396120,1720343448284,-3000.0,0.0002613,2]
[331396121,1720343448293,-3000.0,0.0002614,2]
[331396122,1720343448302,-3000.0,0.0002615,2]
[331396123,1720343448311,-275.898997,0.0002616,7]
[331396124,1720343448321,-275.898997,0.0002616,7]
[331396125,1720343448330,-151.0,0.0002616,7]
[331396126,1720343448339,-151.0,0.0002616,7]
[331396127,1720343448349,-3000.0,0.0002616,2]
[331396128,1720343448359,-151.0,0.0002616,7]
[331396129,1720343448368,-238.793085,0.0002616,7]
[331396130,1720343448378,-238.793085,0.0002616,7]
[331396131,1720343448387,-561.996436,0.0002616,7]
[331396132,1720343448396,-151.0,0.0002616,7]
[331396133,1720343448406,-555.175479,0.0002616,7]
[331396134,1720343448415,-555.175479,0.0002616,7]
[331396135,1720343448425,-622.763566,0.0002616,7]
[331396136,1720343448435,-622.763566,0.0002616,7]
[331396137,1720343448445,-151.0,0.0002616,7]
[331396138,1720343448456,-151.0,0.0002616,7]
[331396139,1720343448465,-196.469183,0.0002616,7]
[331396140,1720343448477,-196.469183,0.0002616,7]
[331396141,1720343448487,-516.102948,0.0002616,7]
[331396143,1720343448497,-516.102948,0.0002616,7]
[331396145,1720343448507,-153.552436,0.0002617,7]
[331396147,1720343448518,-3000.0,0.0002617,2]
[331396149,1720343448528,-3000.0,0.0002618,2]
[331396150,1720343448538,-3000.0,0.0002619,2]
[331396152,1720343448547,-3000.0,0.000262,2]
[331396154,1720343448556,-150.0,0.000262,2]
[331396156,1720343448565,-373.0,0.000262,2]
[331396158,1720343448575,-1002.990517,0.000262,2]
[331396159,1720343448584,-3000.0,0.0002621,2]
[331396161,1720343448593,-3000.0,0.0002622,2]
[331396162,1720343448603,-3000.0,0.0002623,2]
[331396163,1720343448612,-3000.0,0.0002624,2]
[331396164,1720343448622,-3000.0,0.0002625,2]
[331396165,1720343448634,-3000.0,0.0002626,2]
[331396166,1720343448645,-3000.0,0.0002627,2]
[331396167,1720343448654,-3000.0,0.0002628,2]
[331396168,1720343448664,-1275.70741168,0.00026282,2]
[331396169,1720343448674,-3000.0,0.0002629,2]
[331396170,1720343448684,-3000.0,0.000263,2]
[331396171,1720343448694,-3000.0,0.0002631,2]
[331396172,1720343448705,-3000.0,0.0002632,2]
[331396173,1720343448715,-3000.0,0.0002633,2]
[331396174,1720343448725,-3000.0,0.0002634,2]
[331396175,1720343448735,-3000.0,0.0002635,2]
[331396176,1720343448744,-622.763566,0.0002635,7]
[331396177,1720343448753,-622.763566,0.0002635,7]
[331396178,1720343448763,-196.469183,0.0002635,7]
[331396179,1720343448772,-196.469183,0.0002635,7]
[331396180,1720343448781,-516.102948,0.0002635,7]
[331396181,1720343448791,-516.102948,0.0002635,7]
[331396182,1720343448800,-151.0,0.0002636,7]
[331396183,1720343448810,-151.0,0.0002636,7]
[331396184,1720343448820,-3000.0,0.0002636,2]
[331396185,1720343448830,-238.793085,0.0002636,7]
[331396186,1720343448843,-238.793085,0.0002636,7]
[331396188,1720343448853,-561.996436,0.0002636,7]
[331396190,1720343448863,-151.0,0.0002636,7]
[331396192,1720343448872,-555.175479,0.0002636,7]
[331396194,1720343448882,-555.175479,0.0002636,7]
[331396196,1720343448892,-151.0,0.0002636,7]
[331396198,1720343448901,-151.0,0.0002636,7]
[331396200,1720343448911,-275.898997,0.0002637,7]
[331396202,1720343448920,-275.898997,0.0002637,7]
[331396204,1720343448930,-151.0,0.0002637,7]
[331396206,1720343448940,-3000.0,0.0002637,2]
[331396208,1720343448950,-3000.0,0.0002638,2]
[331396209,1720343448959,-3000.0,0.0002639,2]
[331396210,1720343448969,-3000.0,0.000264,2]
[331396212,1720343448979,-3000.0,0.0002641,2]
[331396213,1720343448988,-3000.0,0.0002642,2]
[331396214,1720343448997,-3000.0,0.0002643,2]
[331396215,1720343449007,-3000.0,0.0002644,2]
[331396216,1720343449016,-150.0,0.00026449,2]
[331396217,1720343449025,-3000.0,0.0002645,2]
[331396218,1720343449035,-3042.379392,0.0002646,2]
[331396219,1720343449044,-257.146742,0.00026486,7]
[331396220,1720343449053,-257.146742,0.00026486,7]
[331396221,1720343449062,-164.371,0.00026486,2]
[331396222,1720343449072,-158.246,0.00026486,2]
[331396223,1720343449082,-258.961,0.00026486,2]
[331396224,1720343449091,-3000.0,0.000265,2]
[331396225,1720343449101,-3000.0,0.0002651,2]
[331396226,1720343449111,-208.45254163,0.00026512,2]
[331396227,1720343449120,-3000.0,0.0002652,2]
[331396228,1720343449129,-3000.0,0.0002653,2]
[331396229,1720343449139,-3000.0,0.0002654,2]
[331396230,1720343449148,-3000.0,0.0002655,2]
[331396231,1720343449157,-3000.0,0.0002656,2]
[331396232,1720343449166,-3000.0,0.0002657,2]
[331396233,1720343449176,-561.996436,0.0002657,7]
[331396234,1720343449186,-561.996436,0.0002657,7]
[331396235,1720343449195,-622.763566,0.0002657,7]
[331396236,1720343449206,-622.763566,0.0002657,7]
[331396237,1720343449216,-196.469183,0.0002657,7]
[331396238,1720343449225,-196.469183,0.0002657,7]
[331396239,1720343449234,-516.102948,0.0002657,7]
[331396240,1720343449244,-516.102948,0.0002657,7]
[331396241,1720343449254,-151.0,0.0002658,7]
[331396242,1720343449263,-151.0,0.0002658,7]
[331396243,1720343449273,-3000.0,0.0002658,2]
[331396244,1720343449283,-238.793085,0.0002658,7]
[331396245,1720343449292,-238.793085,0.0002658,7]
[331396246,1720343449301,-272.907309,0.0002658,7]
[331396247,1720343449311,-555.175479,0.0002658,7]
[331396248,1720343449320,-555.175479,0.0002658,7]
[331396249,1720343449330,-151.0,0.0002658,7]
[331396250,1720343449339,-151.0,0.0002658,7]
[331396251,1720343449348,-410.9462759,0.0002658,2]
[331396252,1720343449358,-153.0,0.0002658,2]
[331396253,1720343449367,-153.0,0.0002658,2]
[331396254,1720343449377,-3000.0,0.0002659,2]
[331396255,1720343449387,-275.898997,0.000266,7]
[331396256,1720343449396,-275.898997,0.000266,7]
[331396257,1720343449406,-151.0,0.000266,7]
[331396258,1720343449415,-3000.0,0.000266,2]
[331396259,1720343449425,-350.0,0.00026602,2]
[331396260,1720343449435,-3000.0,0.0002661,2]
[331396261,1720343449444,-3000.0,0.0002662,2]
[331396262,1720343449456,-3000.0,0.0002663,2]
[331396263,1720343449466,-3000.0,0.0002664,2]
[331396264,1720343449475,-3000.0,0.0002665,2]
[331396265,1720343449485,-3000.0,0.0002666,2]
[331396266,1720343449495,-3000.0,0.0002667,2]
[331396267,1720343449506,-3000.0,0.0002668,2]
[331396268,1720343449515,-3000.0,0.0002669,2]
[331396269,1720343449525,-3000.0,0.000267,2]
[331396270,1720343449535,-3000.0,0.0002671,2]
[331396271,1720343449545,-3000.0,0.0002672,2]
[331396272,1720343449556,-3000.0,0.0002673,2]
[331396273,1720343449566,-3000.0,0.0002674,2]
[331396274,1720343449576,-3000.0,0.0002675,2]
[331396275,1720343449586,-3000.0,0.0002676,2]
[331396276,1720343449596,-3000.0,0.0002677,2]
[331396277,1720343449606,-561.996436,0.0002677,7]
[331396278,1720343449615,-561.996436,0.0002677,7]
[331396279,1720343449625,-555.175479,0.0002677,7]
[331396280,1720343449641,-555.175479,0.0002677,7]
[331396281,1720343449651,-622.763566,0.0002677,7]
[331396282,1720343449662,-622.763566,0.0002677,7]
[331396283,1720343449672,-151.0,0.0002677,7]
[331396284,1720343449681,-151.0,0.0002677,7]
[331396285,1720343449691,-196.469183,0.0002677,7]
[331396286,1720343449700,-196.469183,0.0002677,7]
[331396287,1720343449712,-516.102948,0.0002677,7]
[331396288,1720343449722,-516.102948,0.0002677,7]
[331396289,1720343449732,-170.14731,0.0002678,7]
[331396290,1720343449742,-151.0,0.0002678,7]
[331396291,1720343449751,-3000.0,0.0002678,2]
[331396292,1720343449761,-238.793085,0.0002678,7]
[331396293,1720343449770,-238.793085,0.0002678,7]
[331396294,1720343449780,-3000.0,0.0002679,2]
[331396295,1720343449790,-3000.0,0.000268,2]
[331396296,1720343449799,-275.898997,0.0002681,7]
[331396297,1720343449809,-275.898997,0.0002681,7]
[331396298,1720343449818,-151.0,0.0002681,7]
[331396299,1720343449828,-3000.0,0.0002681,2]
[331396300,1720343449840,-3000.0,0.0002682,2]
[331396301,1720343449849,-3000.0,0.0002683,2]
[331396302,1720343449859,-3000.0,0.0002684,2]
[331396303,1720343449869,-3000.0,0.0002685,2]
[331396304,1720343449879,-1000.0,0.0002686,2]
[331396305,1720343449889,-3000.0,0.0002686,2]
[331396306,1720343449899,-3000.0,0.0002687,2]
[331396307,1720343449913,-3000.0,0.0002688,2]
[331396308,1720343449923,-3000.0,0.0002689,2]
[331396309,1720343449932,-3000.0,0.000269,2]
[331396310,1720343449943,-3000.0,0.0002691,2]
[331396311,1720343449954,-3000.0,0.0002692,2]
[331396312,1720343449963,-3000.0,0.0002693,2]
[331396313,1720343449973,-3000.0,0.0002694,2]
[331396314,1720343449986,-3000.0,0.0002695,2]
[331396315,1720343449997,-3000.0,0.0002696,2]
[331396316,1720343450121,-622.763566,0.0002696,7]
[331396317,1720343450131,-622.763571,0.0002696,7]
[331396318,1720343450141,-196.469183,0.0002696,7]
[331396319,1720343450150,-196.469182,0.0002696,7]
[331396320,1720343450160,-516.102948,0.0002696,7]
[331396321,1720343450170,-516.102939,0.0002696,7]
[331396322,1720343450180,-3365.551689,0.0002697,2]
[331396323,1720343450190,-561.996436,0.0002697,7]
[331396324,1720343450200,-561.996436,0.0002697,7]
[331396325,1720343450209,-555.175479,0.0002697,7]
[331396326,1720343450220,-555.175479,0.0002697,7]
[331396327,1720343450230,-151.0,0.0002697,7]
[331396328,1720343450239,-186.604966,0.0002697,7]
[331396329,1720343450249,-160.52658988,0.00026997,2]
[331396330,1720343450258,-2200.1,0.00027,8]
[331396331,1720343450268,-151.0,0.00027,7]
[331396332,1720343450277,-238.793085,0.00027,7]
[331396333,1720343450286,-238.79308,0.00027,7]
[331396334,1720343450295,-167.555182,0.00027123,2]
[331396335,1720343450306,-167.555182,0.00027123,120]
[331396336,1720343450315,-466.32253022,0.0002715,2]
[331396337,1720343450324,-750.0,0.00027195,2]
[331396338,1720343450334,-500.0,0.00027397,2]
[331396339,1720343450343,-500.0,0.00027397,2]
[331396340,1720343450353,-500.0,0.00027397,2]
[331396341,1720343450364,-500.0,0.00027397,2]
[331396342,1720343450373,-500.0,0.00027397,2]
[331396343,1720343450383,-500.0,0.00027397,2]
[331396344,1720343450392,-174.26124418,0.00027397,2]
[331396345,1720343450402,-400.89167099,0.00027397,60]
[331396346,1720343450411,-154.2452266,0.00027402,2]
[331396347,1720343450421,-153.0,0.00027402,2]
[331396348,1720343450430,-224.3983211,0.00027402,2]
[331396349,1720343450440,-306.0,0.00027402,2]
[331396350,1720343450449,-153.0,0.00027402,2]
[331396351,1720343450459,-153.0,0.00027402,2]
[331396352,1720343450468,-153.0,0.00027402,2]
[331396353,1720343450477,-153.0,0.00027402,2]
[331396354,1720343450487,-153.0,0.00027402,2]
[331396355,1720343450497,-21826.58845083,0.000275,2]
[331396356,1720343450507,-275.898997,0.000275,7]
[331396357,1720343450517,-275.898992,0.000275,7]
[331396358,1720343450527,-151.0,0.000275,7]
[331396359,1720343450537,-150.0,0.00027759,2]
[331396360,1720343450546,-1294.82962649,0.000279,2]
[331396361,1720343450556,-31460.27264865,0.0002799,2]
[331396362,1720343450566,-257.146742,0.0002799,7]
[331396363,1720343450575,-257.146742,0.0002799,7]
[331396364,1720343450585,-555.175479,0.0002799,7]
[331396365,1720343450594,-555.175475,0.0002799,7]
[331396366,1720343450604,-151.0,0.0002799,7]
[331396367,1720343450614,-268.44438923,0.00028,2]
[331396368,1720343450623,-199.3755273,0.00028,2]
[331396369,1720343450633,-631.77588735,0.0002823,2]
[331396370,1720343450645,-797.37424955,0.000285,2]
[331396371,1720343450655,-311.4550135,0.00028525,2]
[331396372,1720343450664,-1000.0,0.00028583,2]
[331396373,1720343450675,-301.73004355,0.0002862,2]
[331396374,1720343450684,-1000.0,0.00028622,2]
[331396375,1720343450693,-351.0,0.00028626,2]
[331396376,1720343450703,-1405.0,0.00028626,2]
[331396377,1720343450714,-268.89681779,0.00028669,2]
[331396378,1720343450724,-150.0,0.00028759,2]
[331396379,1720343450733,-153.0,0.00028767,2]
[331396380,1720343450743,-132088.28724254,0.0002877,2]
[331396381,1720343450752,-56130.31018712,0.0002877,2]
[331396382,1720343450762,-257.146742,0.0002877,7]
[331396383,1720343450771,-257.146742,0.0002877,7]
[331396384,1720343450781,-509.64764806,0.0002877,2]
[331396385,1720343450790,-1901.04254717,0.000289,2]
[331396386,1720343450799,-848.94988951,0.00029,2]
[331396387,1720343450810,-153.0,0.00029041,2]
[331396388,1720343450819,-153.0,0.00029315,2]
[331396389,1720343450829,-206.2377939,0.00029315,2]
[331396390,1720343450839,-153.0,0.00029315,2]
[331396391,1720343450848,-153.0,0.00029315,2]
[331396392,1720343450857,-153.0,0.00029315,2]
[331396393,1720343450867,-306.0,0.00029315,2]
[331396394,1720343450876,-153.0,0.00029315,2]
[331396395,1720343450886,-150.0,0.00029486,2]
[331396396,1720343450896,-150.0,0.00029486,2]
[331396397,1720343450905,-150.0,0.00029486,2]
[331396398,1720343450915,-1275.70741168,0.0002951,2]
[331396399,1720343450924,-150.0,0.00029759,2]
[331396400,1720343450934,-206.1814845,0.00029782,2]
[331396401,1720343450944,-277.94710773,0.000298,120]
[331396402,1720343450957,-153.0,0.0003,2]
[331396403,1720343450967,-170.38232151,0.0003,4]
[331396404,1720343450977,-384.44684863,0.0003,10]
[331396405,1720343450987,-7761.93945694,0.0003,10]
[331396406,1720343450996,-202.91834428,0.0003,30]
[331396407,1720343451006,-1000.51586056,0.0003,7]
[331396408,1720343451016,-950.0,0.0003,30]
[331396409,1720343451025,-233.28602306,0.0003,4]
[331396410,1720343451035,-155.67756694,0.0003,4]
[331396411,1720343451045,-403.13718572,0.0003,30]
[331396412,1720343451054,-495.639058,0.0003,4]
[331396413,1720343451064,-643.15521756,0.0003,4]
[331396414,1720343451073,-150.0,0.0003,2]
[331396415,1720343451083,-257.146742,0.0003,7]
[331396416,1720343451091,-257.146742,0.0003,7]
[331396417,1720343451101,-244.0,0.0003,2]
[331396418,1720343451110,-9461.6047,0.00030005,30]
[331396419,1720343451120,-206.1814845,0.00030137,2]
[331396420,1720343451129,-412.362969,0.00030137,2]
[331396421,1720343451138,-306.0,0.00030604,2]
[331396422,1720343451148,-500.0,0.00030684,2]
[331396423,1720343451157,-153.0,0.00030685,2]
[331396424,1720343451167,-153.0,0.00030685,2]
[331396425,1720343451176,-153.0,0.00030685,2]
[331396426,1720343451186,-150.0,0.00030759,2]
[331396427,1720343451195,-164.16,0.00030821,2]
[331396428,1720343451210,-163.537782,0.00031175,2]
[331396429,1720343451219,-351.0,0.00031626,2]
[331396430,1720343451228,-1405.0,0.00031626,2]
[331396431,1720343451238,-306.0,0.00031644,2]
[331396432,1720343451247,-153.0,0.00031644,2]
[331396433,1720343451256,-306.0,0.00031644,2]
[331396434,1720343451265,-293.4755649,0.00031781,2]
[331396435,1720343451275,-293.4755649,0.00031781,2]
[331396436,1720343451284,-293.4755649,0.00031781,2]
[331396437,1720343451294,-4205.08978328,0.000318,2]
[331396438,1720343451304,-338.8331298,0.0003181,2]
[331396439,1720343451314,-382.02489905,0.00032,120]
[331396440,1720343451323,-153.0,0.00032055,2]
[331396441,1720343451333,-153.0,0.00032055,2]
[331396442,1720343451342,-153.0,0.00032055,2]
[331396443,1720343451352,-153.0,0.00032055,2]
[331396444,1720343451361,-153.0,0.00032055,2]
[331396445,1720343451370,-153.0,0.00032055,2]
[331396446,1720343451380,-153.0,0.00032055,2]
[331396447,1720343451390,-206.2377939,0.00032055,2]
[331396448,1720343451400,-306.0,0.00032276,2]
[331396449,1720343451410,-1054.0,0.000324,5]
[331396450,1720343451419,-600.0,0.00032428,2]
[331396451,1720343451428,-150.0,0.00032486,2]
[331396452,1720343451437,-150.0,0.00032486,2]
[331396453,1720343451446,-2448.85335951,0.000325,60]
[331396454,1720343451459,-153.0,0.00032603,2]
[331396455,1720343451470,-153.0,0.00032603,2]
[331396456,1720343451479,-153.0,0.00032603,2]
[331396457,1720343451489,-153.0,0.00032603,2]
[331396458,1720343451498,-153.0,0.00032603,2]
[331396459,1720343451507,-153.0,0.00032603,2]
[331396460,1720343451516,-153.0,0.00032603,2]
[331396461,1720343451525,-153.0,0.00032603,2]
[331396462,1720343451533,-153.0,0.00032603,2]
[331396463,1720343451542,-153.0,0.00032603,2]
[331396464,1720343451551,-153.0,0.00032603,2]
[331396465,1720343451560,-1275.70741168,0.00032739,2]
[331396466,1720343451569,-153.0,0.0003274,2]
[331396467,1720343451579,-153.0,0.0003274,2]
[331396468,1720343451588,-952.44947376,0.00032766,2]
[331396469,1720343451597,-4249.99405406,0.00032875,30]
[331396470,1720343451607,-500.0,0.00032876,5]
[331396471,1720343451617,-507.83637853,0.00032876,5]
[331396472,1720343451626,-521.33875284,0.00032876,5]
[331396473,1720343451637,-500.0,0.00032876,5]
[331396474,1720343451647,-513.66972081,0.00032876,5]
[331396475,1720343451655,-500.0,0.00032876,5]
[331396476,1720343451664,-500.0,0.00032876,5]
[331396477,1720343451673,-500.0,0.00032876,5]
[331396478,1720343451684,-500.0,0.00032876,5]
[331396479,1720343451693,-500.0,0.00032876,5]
[331396480,1720343451704,-500.0,0.00032876,5]
[331396481,1720343451714,-500.0,0.00032876,5]
[331396482,1720343451723,-500.0,0.00032876,5]
[331396483,1720343451732,-500.0,0.00032876,5]
[331396484,1720343451741,-500.0,0.00032876,5]
[331396485,1720343451750,-509.25478532,0.00032876,5]
[331396486,1720343451759,-505.50047938,0.00032876,5]
[331396487,1720343451768,-511.20103237,0.00032876,5]
[331396488,1720343451778,-508.34456021,0.00032876,5]
[331396489,1720343451787,-512.65913779,0.00032876,5]
[331396490,1720343451796,-500.0,0.00032876,5]
[331396491,1720343451806,-500.0,0.00032876,5]
[331396492,1720343451815,-500.0,0.00032876,5]
[331396493,1720343451824,-534.55873302,0.00032876,5]
[331396494,1720343451833,-407.85590929,0.00032876,5]